bitfinex/quotes_SOLUSD_20241115
["timestamp","ask_amount","ask_price","bid_price","bid_amount"]
[1731638258648,23.8307821,210.51,210.44,23.8307821]
[1731638258827,23.8307821,210.49,210.42,30.2359821]
[1731638259337,4.7496,210.55,210.44,23.8307821]
[1731638259338,23.8307821,210.51,210.44,23.8307821]
[1731638259536,23.8307821,210.49,210.42,30.2359821]
[1731638260859,23.8307821,210.48,210.42,6.4052]
[1731638261050,23.8307821,210.48,210.41,23.8307821]
[1731638261228,4.7499,210.53,210.37,22.3018]
[1731638261229,23.8307821,210.47,210.39,23.8307821]
[1731638261543,23.8307821,210.45,210.37,46.1325821]
[1731638262148,24.7499,210.53,210.37,46.1325821]
[1731638262149,23.8307821,210.48,210.4,23.8307821]
[1731638262351,23.8307821,210.47,210.4,23.8307821]
[1731638262656,23.8307821,210.46,210.39,23.8307821]
[1731638263755,4.7507,210.5,210.37,22.3018]
[1731638263756,23.8307821,210.47,210.4,23.8307821]
[1731638264158,23.8307821,210.5,210.42,23.8307821]
[1731638264461,4.7502,210.52,210.37,22.3018]
[1731638264462,23.8307821,210.46,210.37,22.3018]
[1731638264751,23.902374,210.51,210.37,37.20992212]
[1731638264935,14.90812212,210.43,210.37,22.3018]
[1731638265439,14.90812212,210.41,210.37,15.8966]
[1731638266268,14.90812212,210.38,210.31,15.1575]
[1731638266558,14.90812212,210.38,210.31,30.06562212]
[1731638266770,23.86714703,210.38,210.31,39.02464703]
[1731638267064,23.86714703,210.36,210.31,15.1575]
[1731638267243,23.96714703,210.43,210.31,15.1575]
[1731638267244,23.86714703,210.34,210.31,15.1575]
[1731638267440,23.86714703,210.34,210.27,30.02084703]
[1731638267752,4.7536,210.37,210.26,15.1575]
[1731638267753,23.86714703,210.32,210.26,15.1575]
[1731638268055,23.86714703,210.3,210.26,15.1575]
[1731638268259,23.86714703,210.32,210.26,15.1575]
[1731638268437,23.86714703,210.33,210.26,15.1575]
[1731638268855,4.7536,210.37,210.26,15.1575]
[1731638268856,23.86714703,210.32,210.26,15.1575]
[1731638269059,23.86714703,210.3,210.26,15.1575]
[1731638269759,23.86714703,210.31,210.26,15.1575]
[1731638271163,23.86714703,210.33,210.26,39.02464703]
[1731638271871,4.7539,210.36,210.26,39.02464703]
[1731638271872,23.86714703,210.34,210.27,23.86714703]
[1731638272154,11.4533,210.39,210.26,15.1575]
[1731638272155,23.86714703,210.33,210.26,15.1575]
[1731638272358,23.86714703,210.34,210.27,23.86714703]
[1731638272666,23.86714703,210.32,210.26,15.1575]
[1731638273142,23.86714703,210.33,210.26,15.1575]
[1731638273338,23.86714703,210.33,210.26,39.02464703]
[1731638273545,11.4533,210.39,210.26,39.02464703]
[1731638273546,23.86714703,210.35,210.27,23.86714703]
[1731638274267,23.86714703,210.38,210.31,23.86714703]
[1731638274559,4.7527,210.41,210.27,23.86714703]
[1731638274560,23.86714703,210.35,210.27,23.86714703]
[1731638274763,23.86714703,210.35,210.28,23.86714703]
[1731638275558,23.86714703,210.37,210.29,23.86714703]
[1731638275750,23.86714703,210.43,210.31,23.86714703]
[1731638275751,23.86714703,210.38,210.31,23.86714703]
[1731638275948,23.86714703,210.37,210.3,23.86714703]
[1731638276155,23.86714703,210.38,210.31,23.86714703]
[1731638277041,23.86714703,210.38,210.27,20.0]
[1731638277238,23.86714703,210.37,210.3,23.86714703]
[1731638277443,23.86714703,210.39,210.31,23.86714703]
[1731638277655,23.86714703,210.42,210.34,23.86714703]
[1731638278260,23.86714703,210.41,210.34,23.86714703]
[1731638278959,23.86714703,210.4,210.33,23.86714703]
[1731638279160,4.7519,210.44,210.33,23.86714703]
[1731638279161,23.86714703,210.41,210.33,23.86714703]
[1731638280665,23.86714703,210.41,210.34,45.55034703]
[1731638280858,0.1,210.48,210.36,23.86714703]
[1731638280859,23.86714703,210.43,210.36,23.86714703]
[1731638281051,23.86714703,210.44,210.36,23.86714703]
[1731638281253,23.86714703,210.39,210.34,15.5872]
[1731638281464,23.86714703,210.37,210.34,15.5872]
[1731638281763,23.86714703,210.36,210.29,45.55034703]
[1731638282078,23.86714703,210.35,210.29,21.6832]
[1731638282272,23.86714703,210.36,210.29,45.55034703]
[1731638282450,23.86714703,210.37,210.3,23.86714703]
[1731638282764,23.86714703,210.39,210.32,23.86714703]
[1731638282965,23.86714703,210.42,210.35,23.86714703]
[1731638283656,23.86714703,210.37,210.3,23.86714703]
[1731638283965,6.3213,210.39,210.24,45.55034703]
[1731638284145,23.86714703,210.31,210.24,45.55034703]
[1731638284971,43.876884,210.44,210.3,23.86714703]
[1731638285165,23.86714703,210.41,210.34,23.86714703]
[1731638285368,4.7521,210.44,210.31,23.86714703]
[1731638285369,23.86714703,210.38,210.31,23.86714703]
[1731638285554,4.7521,210.44,210.31,23.86714703]
[1731638285751,23.86714703,210.39,210.27,0.12549]
[1731638285959,23.86714703,210.39,210.24,21.6832]
[1731638285960,23.86714703,210.35,210.24,21.6832]
[1731638286156,23.86714703,210.31,210.24,21.6832]
[1731638286471,23.86714703,210.29,210.24,21.6832]
[1731638287172,4.7539,210.35,210.24,15.5872]
[1731638287468,23.86714703,210.31,210.24,39.45434703]
[1731638287677,23.86714703,210.34,210.27,23.86714703]
[1731638287876,23.86714703,210.34,210.26,23.86714703]
[1731638288467,23.86714703,210.31,210.24,39.45434703]
[1731638288967,14.92811322,210.29,210.24,15.5872]
[1731638289753,14.92811322,210.31,210.24,30.51531322]
[1731638290078,14.92811322,210.32,210.24,30.51531322]
[1731638290369,14.92811322,210.32,210.25,14.92811322]
[1731638291376,14.92811322,210.32,210.24,15.5872]
[1731638291377,14.92811322,210.34,210.26,14.92811322]
[1731638291564,14.92811322,210.34,210.24,15.5872]
[1731638291565,14.92811322,210.35,210.28,14.92811322]
[1731638291765,14.92811322,210.34,210.27,14.92811322]
[1731638291962,14.92811322,210.34,210.26,14.92811322]
[1731638292166,14.92811322,210.35,210.28,14.92811322]
[1731638292467,4.753,210.39,210.25,34.92811322]
[1731638292468,14.92811322,210.33,210.25,34.92811322]
[1731638292653,14.92811322,210.36,210.29,14.92811322]
[1731638294175,14.92811322,210.35,210.24,15.5872]
[1731638294479,14.92811322,210.31,210.24,30.51531322]
[1731638294680,14.92811322,210.32,210.24,30.51531322]
[1731638294882,23.776884,210.37,210.24,30.51531322]
[1731638294883,14.92811322,210.33,210.25,14.92811322]
[1731638295260,14.92811322,210.32,210.25,14.92811322]
[1731638295565,14.92811322,210.33,210.25,14.92811322]
[1731638295968,14.92811322,210.29,210.24,15.5872]
[1731638296158,0.1,210.36,210.24,15.5872]
[1731638296159,0.1,210.35,210.24,15.5872]
[1731638296472,0.1,210.35,210.19,22.339]
[1731638296473,14.92811322,210.25,210.19,22.339]
[1731638297084,14.92811322,210.26,210.19,37.26711322]
[1731638297272,14.92811322,210.27,210.2,14.92811322]
[1731638297661,14.92811322,210.27,210.19,22.339]
[1731638297662,14.92811322,210.25,210.19,22.339]
[1731638298278,14.92811322,210.26,210.19,37.26711322]
[1731638298577,14.92811322,210.28,210.2,14.92811322]
[1731638298782,14.92811322,210.27,210.2,14.92811322]
[1731638299079,14.92811322,210.26,210.19,22.339]
[1731638299665,14.92811322,210.26,210.19,37.26711322]
[1731638300990,14.92811322,210.32,210.25,14.92811322]
[1731638301280,19.68251322,210.33,210.26,14.92811322]
[1731638301478,19.68251322,210.33,210.19,22.339]
[1731638301479,14.92811322,210.34,210.27,14.92811322]
[1731638302078,14.92811322,210.34,210.26,14.92811322]
[1731638302378,14.92811322,210.33,210.26,14.92811322]
[1731638302755,14.92811322,210.35,210.28,14.92811322]
[1731638303676,14.92811322,210.36,210.29,14.92811322]
[1731638303979,14.92811322,210.41,210.34,14.92811322]
[1731638304160,11.8783,210.47,210.37,14.92811322]
[1731638304161,4.7514,210.46,210.37,14.92811322]
[1731638304364,161.6,210.51,210.32,14.92811322]
[1731638304365,0.1,210.51,210.4,14.92811322]
[1731638304671,14.92811322,210.46,210.39,14.92811322]
[1731638304978,0.22549,210.51,210.34,14.92811322]
[1731638304979,14.92811322,210.41,210.34,14.92811322]
[1731638305165,14.92811322,210.4,210.33,14.92811322]
[1731638305354,14.92811322,210.42,210.35,14.92811322]
[1731638305560,0.22549,210.5,210.37,14.92811322]
[1731638305561,14.92811322,210.44,210.37,14.92811322]
[1731638305774,0.1,210.49,210.31,16.0859]
[1731638305982,14.92811322,210.38,210.31,16.0859]
[1731638306286,6.6168,210.46,210.31,16.0859]
[1731638306287,14.92811322,210.36,210.31,16.0859]
[1731638306589,14.92811322,210.39,210.32,14.92811322]
[1731638306757,14.92811322,210.37,210.31,16.0859]
[1731638307455,14.92811322,210.36,210.31,16.0859]
[1731638307668,14.92811322,210.33,210.25,21.8262]
[1731638307884,0.1,210.41,210.25,36.75431322]
[1731638307885,14.92811322,210.32,210.25,36.75431322]
[1731638308382,14.92811322,210.36,210.29,14.92811322]
[1731638308864,23.87123836,210.35,210.28,23.87123836]
[1731638309671,23.87123836,210.36,210.29,23.87123836]
[1731638310063,23.87123836,210.35,210.28,23.87123836]
[1731638310270,23.87123836,210.35,210.25,21.8262]
[1731638310271,23.87123836,210.32,210.25,45.69743836]
[1731638310886,23.87123836,210.36,210.28,23.87123836]
[1731638311287,23.87123836,210.39,210.32,23.87123836]
[1731638311581,23.87123836,210.4,210.33,23.87123836]
[1731638311787,23.87123836,210.4,210.26,23.902374]
[1731638311788,23.87123836,210.42,210.35,23.87123836]
[1731638311985,23.87123836,210.43,210.36,23.87123836]
[1731638312384,6.5168,210.46,210.32,23.87123836]
[1731638312385,23.87123836,210.4,210.32,23.87123836]
[1731638312564,23.87123836,210.37,210.3,23.87123836]
[1731638312882,23.87123836,210.37,210.26,23.902374]
[1731638312883,23.87123836,210.39,210.31,23.87123836]
[1731638313468,23.87123836,210.39,210.26,23.902374]
[1731638313469,23.87123836,210.41,210.33,23.87123836]
[1731638313780,23.87123836,210.4,210.32,23.87123836]
[1731638314187,23.87123836,210.39,210.32,23.87123836]
[1731638315075,23.87123836,210.41,210.34,23.87123836]
[1731638315258,23.87123836,210.39,210.31,23.87123836]
[1731638315778,23.87123836,210.39,210.32,23.87123836]
[1731638316164,23.87123836,210.41,210.34,23.87123836]
[1731638316370,23.87123836,210.43,210.36,23.87123836]
[1731638316568,4.7517,210.45,210.34,23.87123836]
[1731638316569,23.87123836,210.41,210.34,23.87123836]
[1731638317567,4.7517,210.45,210.26,24.002374]
[1731638317568,23.87123836,210.42,210.35,23.87123836]
[1731638317777,23.87123836,210.39,210.25,21.8262]
[1731638318089,23.87123836,210.41,210.33,23.87123836]
[1731638318987,23.87123836,210.4,210.33,23.87123836]
[1731638319179,23.87123836,210.4,210.32,23.87123836]
[1731638319412,23.87123836,210.41,210.33,23.87123836]
[1731638320591,23.87123836,210.4,210.33,23.87123836]
[1731638321476,23.87123836,210.4,210.26,23.902374]
[1731638321477,23.87123836,210.41,210.34,23.87123836]
[1731638322275,23.87123836,210.43,210.36,23.87123836]
[1731638322479,23.87123836,210.42,210.34,23.87123836]
[1731638323092,23.87123836,210.41,210.33,23.87123836]
[1731638323578,23.87123836,210.39,210.31,23.87123836]
[1731638323778,23.87123836,210.38,210.3,23.87123836]
[1731638324372,23.87123836,210.39,210.32,23.87123836]
[1731638324979,23.87123836,210.4,210.32,23.87123836]
[1731638325398,23.87123836,210.39,210.32,23.87123836]
[1731638327390,23.87123836,210.41,210.34,23.87123836]
[1731638327773,23.87123836,210.41,210.33,23.87123836]
[1731638328007,23.87123836,210.41,210.28,23.87123836]
[1731638328008,23.87123836,210.35,210.28,23.87123836]
[1731638328207,23.87123836,210.3,210.25,15.3312]
[1731638328505,23.87123836,210.29,210.21,23.87123836]
[1731638328794,4.7552,210.3,210.2,16.5857]
[1731638328795,23.87123836,210.28,210.2,16.5857]
[1731638329496,23.87123836,210.29,210.22,23.87123836]
[1731638329699,23.87123836,210.33,210.26,23.87123836]
[1731638330001,6.1402,210.36,210.28,23.87123836]
[1731638330002,23.87123836,210.35,210.28,23.87123836]
[1731638330995,23.87123836,210.35,210.21,23.87123836]
[1731638330996,14.92193713,210.34,210.26,14.92193713]
[1731638331995,14.92193713,210.34,210.22,23.776884]
[1731638331996,14.92193713,210.34,210.27,14.92193713]
[1731638332377,14.92193713,210.35,210.28,14.92193713]
[1731638332880,14.92193713,210.34,210.27,14.92193713]
[1731638333296,11.4533,210.38,210.22,23.776884]
[1731638333297,14.92193713,210.36,210.29,14.92193713]
[1731638333681,14.92193713,210.37,210.3,14.92193713]
[1731638334000,14.92193713,210.38,210.31,14.92193713]
[1731638334296,14.92193713,210.34,210.27,14.92193713]
[1731638334986,14.92193713,210.36,210.29,14.92193713]
[1731638335292,14.92193713,210.35,210.28,14.92193713]
[1731638335482,14.92193713,210.34,210.27,14.92193713]
[1731638335803,14.92193713,210.34,210.26,14.92193713]
[1731638337276,14.92193713,210.34,210.27,14.92193713]
[1731638338283,14.92193713,210.3,210.24,16.4576]
[1731638339577,14.92193713,210.31,210.24,31.37953713]
[1731638339782,4.953,210.39,210.24,31.37953713]
[1731638339783,14.92193713,210.33,210.26,14.92193713]
[1731638339990,14.92193713,210.32,210.25,14.92193713]
[1731638340199,14.92193713,210.31,210.24,16.4576]
[1731638340583,14.92193713,210.3,210.24,16.4576]
[1731638340995,14.92193713,210.26,210.19,21.2954]
[1731638341194,14.92193713,210.25,210.19,21.2954]
[1731638341373,14.92193713,210.27,210.2,14.92193713]
[1731638341576,14.92193713,210.26,210.19,36.21733713]
[1731638341775,14.92193713,210.27,210.2,14.92193713]
[1731638342183,14.92193713,210.27,210.19,36.21733713]
[1731638342392,14.92193713,210.27,210.2,14.92193713]
[1731638343087,14.92193713,210.25,210.19,21.2954]
[1731638343281,14.92193713,210.26,210.19,36.21733713]
[1731638343506,14.92193713,210.27,210.2,14.92193713]
[1731638343686,14.92193713,210.32,210.24,14.92193713]
[1731638343882,11.9829,210.39,210.28,14.92193713]
[1731638343883,14.92193713,210.35,210.28,14.92193713]
[1731638344408,14.92193713,210.36,210.29,14.92193713]
[1731638344602,10.9792,210.41,210.33,14.92193713]
[1731638344818,14.92193713,210.39,210.32,14.92193713]
[1731638345102,10.9792,210.41,210.23,23.876884]
[1731638345103,14.92193713,210.34,210.27,14.92193713]
[1731638345285,10.9792,210.41,210.26,14.92193713]
[1731638345482,11.0792,210.41,210.26,14.92193713]
[1731638345697,11.0792,210.41,210.22,16.0388]
[1731638345698,14.92193713,210.29,210.22,30.96073713]
[1731638345900,14.92193713,210.3,210.23,14.92193713]
[1731638346081,14.92193713,210.3,210.22,16.0388]
[1731638346082,14.92193713,210.24,210.17,16.4104]
[1731638346278,14.92193713,210.24,210.17,31.33233713]
[1731638346503,14.92193713,210.25,210.18,14.92193713]
[1731638346684,14.92193713,210.26,210.19,14.92193713]
[1731638346885,14.92193713,210.29,210.22,14.92193713]
[1731638347100,0.12549,210.34,210.28,14.92193713]
[1731638347410,0.12549,210.34,210.33,14.92193713]
[1731638348309,0.12549,210.34,210.32,14.92193713]
[1731638348610,0.12549,210.34,210.29,14.92193713]
[1731638349003,0.12549,210.34,210.31,14.92193713]
[1731638349908,0.12549,210.34,210.3,14.92193713]
[1731638350095,0.12549,210.34,210.27,15.5645]
[1731638350288,0.12549,210.34,210.24,14.92193713]
[1731638350289,14.92193713,210.31,210.24,14.92193713]
[1731638350490,14.92193713,210.29,210.22,14.92193713]
[1731638350697,14.92193713,210.3,210.23,14.92193713]
[1731638350907,14.92193713,210.31,210.24,14.92193713]
[1731638351095,14.92193713,210.3,210.23,14.92193713]
[1731638351302,14.92193713,210.27,210.2,30.35603713]
[1731638351509,14.92193713,210.28,210.2,30.35603713]
[1731638351803,14.92193713,210.28,210.21,14.92193713]
[1731638351984,4.87969,210.34,210.22,14.92193713]
[1731638352323,14.92193713,210.33,210.25,14.92193713]
[1731638353417,14.92193713,210.32,210.25,14.92193713]
[1731638354327,14.92193713,210.31,210.24,14.92193713]
[1731638355187,14.92193713,210.31,210.23,14.92193713]
[1731638356201,14.92193713,210.31,210.24,14.92193713]
[1731638356403,15.04742713,210.34,210.27,14.92193713]
[1731638358097,0.12549,210.34,210.28,14.92193713]
[1731638358497,0.12549,210.34,210.29,14.92193713]
[1731638358698,0.12549,210.34,210.28,14.92193713]
[1731638359099,0.12549,210.34,210.27,14.92193713]
[1731638359417,0.12549,210.34,210.28,14.92193713]
[1731638359722,0.12549,210.34,210.27,14.92193713]
[1731638359925,14.92193713,210.3,210.23,14.92193713]
[1731638362517,14.92193713,210.31,210.24,14.92193713]
[1731638363494,14.92193713,210.32,210.25,14.92193713]
[1731638363825,0.12549,210.34,210.28,14.92193713]
[1731638365720,0.12549,210.34,210.29,14.92193713]
[1731638365891,0.12549,210.34,210.28,14.92193713]
[1731638367618,0.12549,210.34,210.31,14.92193713]
[1731638368126,0.12549,210.34,210.29,14.92193713]
[1731638370004,0.12549,210.34,210.3,14.92193713]
[1731638371496,0.12549,210.34,210.32,14.92193713]
[1731638371712,0.12549,210.34,210.24,16.3855]
[1731638371713,0.12549,210.34,210.3,14.92193713]
[1731638373308,0.12549,210.34,210.29,14.92193713]
[1731638373595,14.92193713,210.33,210.26,14.92193713]
[1731638373905,14.92193713,210.32,210.25,14.92193713]
[1731638374104,14.92193713,210.32,210.24,31.20743713]
[1731638374626,14.92193713,210.33,210.26,14.92193713]
[1731638374835,0.12549,210.34,210.28,14.92193713]
[1731638375002,0.12549,210.34,210.3,14.92193713]
[1731638375202,0.12549,210.34,210.31,14.92193713]
[1731638375408,0.12549,210.34,210.3,14.92193713]
[1731638375737,0.12549,210.34,210.27,14.92193713]
[1731638375920,15.04742713,210.34,210.26,14.92193713]
[1731638376429,0.12549,210.34,210.3,14.92193713]
[1731638377139,0.12549,210.34,210.32,14.92193713]
[1731638377426,0.12549,210.34,210.25,0.12549]
[1731638377427,0.12549,210.34,210.33,14.92193713]
[1731638377832,0.12549,210.34,210.32,14.92193713]
[1731638378005,0.12549,210.34,210.25,23.902374]
[1731638378006,0.12549,210.34,210.33,14.92193713]
[1731638378211,0.12549,210.34,210.32,14.92193713]
[1731638378726,0.12549,210.34,210.33,14.92193713]
[1731638380213,0.12549,210.34,210.33,31.47942713]
[1731638380413,0.12549,210.34,210.33,55.25631113]
[1731638380607,0.12549,210.34,210.33,75.35631113]
[1731638381316,0.12549,210.34,210.33,75.25631113]
[1731638386129,0.12549,210.34,210.33,75.35631113]
[1731638388039,14.92193713,210.49,210.34,23.902374]
[1731638388328,14.92193713,210.49,210.42,14.92193713]
[1731638388724,14.92193713,210.49,210.41,14.92193713]
[1731638389739,14.92193713,210.48,210.41,14.92193713]
[1731638390744,14.92193713,210.45,210.38,14.92193713]
[1731638391034,14.92193713,210.42,210.35,14.92193713]
[1731638391227,14.92193713,210.4,210.33,31.35393713]
[1731638392237,14.92193713,210.34,210.22,15.9827]
[1731638392540,14.92193713,210.33,210.26,14.92193713]
[1731638392732,11.2308,210.4,210.22,15.9827]
[1731638392733,14.92193713,210.37,210.3,14.92193713]
[1731638392929,14.92193713,210.38,210.31,14.92193713]
[1731638393439,14.92193713,210.38,210.3,14.92193713]
[1731638394419,14.92193713,210.39,210.31,14.92193713]
[1731638394640,14.92193713,210.43,210.36,14.92193713]
[1731638395335,16.2052,210.44,210.35,14.92193713]
[1731638395336,14.92193713,210.42,210.35,14.92193713]
[1731638395638,26.37523713,210.44,210.36,14.92193713]
[1731638395842,14.92193713,210.43,210.36,14.92193713]
[1731638396232,11.4533,210.44,210.31,15.9804]
[1731638396233,14.92193713,210.44,210.37,14.92193713]
[1731638396435,21.07863713,210.45,210.38,14.92193713]
[1731638396743,14.92193713,210.46,210.39,14.92193713]
[1731638397246,14.92193713,210.47,210.4,14.92193713]
[1731638397429,14.92193713,210.48,210.41,14.92193713]
[1731638397841,14.92193713,210.47,210.4,14.92193713]
[1731638399041,14.92193713,210.45,210.37,14.92193713]
[1731638399247,14.92193713,210.44,210.36,14.92193713]
[1731638399941,14.92193713,210.46,210.38,14.92193713]
[1731638400237,14.92193713,210.45,210.38,14.92193713]
[1731638400842,14.92193713,210.45,210.32,23.902374]
[1731638401020,11.4533,210.49,210.41,14.92193713]
[1731638401227,11.4533,210.49,210.43,14.92193713]
[1731638401434,14.92193713,210.49,210.42,14.92193713]
[1731638401651,4.7502,210.52,210.41,14.92193713]
[1731638401853,4.7502,210.52,210.37,6.2175]
[1731638402033,19.67383713,210.44,210.37,14.92193713]
[1731638402217,14.92193713,210.43,210.35,14.92193713]
[1731638402540,4.7519,210.44,210.31,15.9804]
[1731638402541,14.92193713,210.41,210.34,14.92193713]
[1731638402751,14.92193713,210.41,210.33,14.92193713]
[1731638403251,14.92193713,210.37,210.22,21.8221]
[1731638403419,14.92193713,210.37,210.29,14.92193713]
[1731638403745,14.92193713,210.41,210.34,14.92193713]
[1731638403930,4.7519,210.44,210.25,0.12549]
[1731638404127,0.12549,210.43,210.25,0.12549]
[1731638404329,23.902374,210.43,210.22,21.8221]
[1731638404532,20.0,210.42,210.22,21.8221]
[1731638404840,20.0,210.42,210.22,21.9221]
[1731638405052,20.0,210.42,210.23,0.12549]
[1731638405343,14.92193713,210.37,210.3,14.92193713]
[1731638406147,14.92193713,210.36,210.29,14.92193713]
[1731638406621,14.92193713,210.33,210.26,14.92193713]
[1731638407033,16.7332,210.42,210.25,14.92193713]
[1731638407034,14.92193713,210.32,210.25,14.92193713]
[1731638407227,14.92193713,210.31,210.24,14.92193713]
[1731638407849,14.92193713,210.29,210.22,30.42383713]
[1731638408144,14.92193713,210.24,210.17,30.31473713]
[1731638408445,14.92193713,210.24,210.17,14.92193713]
[1731638408843,4.855,210.31,210.12,21.9929]
[1731638408844,14.92193713,210.23,210.16,14.92193713]
[1731638409031,14.92193713,210.24,210.17,14.92193713]
[1731638410026,14.92193713,210.29,210.22,14.92193713]
[1731638410226,14.92193713,210.3,210.23,14.92193713]
[1731638410421,14.92193713,210.29,210.22,14.92193713]
[1731638410842,23.88844461,210.29,210.22,23.88844461]
[1731638411144,23.88844461,210.33,210.26,23.88844461]
[1731638411353,30.38254461,210.35,210.29,23.88844461]
[1731638411653,30.38254461,210.35,210.21,23.88844461]
[1731638411654,4.7531,210.39,210.25,15.044]
[1731638412148,23.88844461,210.34,210.27,23.88844461]
[1731638412347,23.88844461,210.33,210.26,23.88844461]
[1731638412926,23.88844461,210.31,210.25,23.88844461]
[1731638413744,23.88844461,210.31,210.2,15.044]
[1731638413745,23.88844461,210.27,210.2,23.88844461]
[1731638414133,23.88844461,210.26,210.19,23.88844461]
[1731638414339,23.88844461,210.28,210.21,23.88844461]
[1731638414554,23.88844461,210.29,210.22,23.88844461]
[1731638414726,23.88844461,210.27,210.2,23.88844461]
[1731638414928,23.88844461,210.26,210.19,23.88844461]
[1731638415124,23.88844461,210.26,210.18,23.88844461]
[1731638416048,23.88844461,210.25,210.18,23.88844461]
[1731638416256,23.88844461,210.23,210.16,23.88844461]
[1731638416663,23.88844461,210.2,210.13,23.88844461]
[1731638417143,23.88844461,210.19,210.12,23.88844461]
[1731638417765,28.64544461,210.22,210.15,23.88844461]
[1731638418443,23.88844461,210.21,210.14,23.88844461]
[1731638418635,23.88844461,210.22,210.15,23.88844461]
[1731638418846,23.88844461,210.23,210.16,23.88844461]
[1731638419455,23.88844461,210.25,210.18,23.88844461]
[1731638419749,23.88844461,210.24,210.17,23.88844461]
[1731638419933,23.902374,210.25,210.19,23.88844461]
[1731638420129,23.902374,210.25,210.18,23.88844461]
[1731638420130,47.79081861,210.25,210.18,23.88844461]
[1731638420553,23.88844461,210.24,210.17,23.88844461]
[1731638421954,23.88844461,210.22,210.15,23.88844461]
[1731638422331,47.66532861,210.23,210.16,23.88844461]
[1731638422537,23.88844461,210.24,210.17,23.88844461]
[1731638424359,23.88844461,210.24,210.1,40.11494461]
[1731638424360,23.88844461,210.22,210.15,23.88844461]
[1731638424651,23.88844461,210.21,210.15,23.88844461]
[1731638424954,23.88844461,210.22,210.15,23.88844461]
[1731638425843,23.776884,210.23,210.14,23.88844461]
[1731638425844,23.88844461,210.21,210.14,23.88844461]
[1731638426344,23.88844461,210.2,210.13,23.88844461]
[1731638427263,23.88844461,210.22,210.16,23.88844461]
[1731638427555,52.42202861,210.23,210.17,23.88844461]
[1731638428042,52.42202861,210.23,210.16,23.88844461]
[1731638428248,52.42202861,210.23,210.17,23.88844461]
[1731638428447,23.776884,210.23,210.17,23.88844461]
[1731638428636,23.776884,210.23,210.1,40.11494461]
[1731638428637,23.776884,210.23,210.18,23.88844461]
[1731638428951,52.54721861,210.24,210.17,23.88844461]
[1731638429153,23.88844461,210.23,210.17,23.88844461]
[1731638430033,23.776884,210.22,210.17,23.88844461]
[1731638430739,23.776884,210.22,210.17,14.93878782]
[1731638431339,23.776884,210.23,210.17,14.93878782]
[1731638431545,23.776884,210.23,210.19,14.93878782]
[1731638431854,15.03878782,210.32,210.22,14.93878782]
[1731638432037,19.69338782,210.33,210.27,14.93878782]
[1731638432238,4.7546,210.33,210.27,14.93878782]
[1731638432456,0.12549,210.32,210.27,14.93878782]
[1731638432832,0.12549,210.32,210.27,23.87830836]
[1731638433033,0.12549,210.32,210.26,23.87830836]
[1731638433239,4.88009,210.32,210.26,23.87830836]
[1731638433539,23.776884,210.31,210.26,23.87830836]
[1731638435139,52.40999236,210.31,210.25,23.87830836]
[1731638435335,23.87830836,210.3,210.23,23.87830836]
[1731638435537,23.776884,210.27,210.21,23.87830836]
[1731638435841,47.65519236,210.27,210.21,23.87830836]
[1731638436361,23.776884,210.27,210.21,23.87830836]
[1731638436559,47.65519236,210.25,210.18,23.87830836]
[1731638436851,47.65519236,210.25,210.19,23.87830836]
[1731638437241,23.87830836,210.27,210.2,23.87830836]
[1731638437641,23.87830836,210.28,210.21,23.87830836]
[1731638437841,23.87830836,210.28,210.15,0.12549]
[1731638437842,47.65519236,210.27,210.2,23.87830836]
[1731638438042,23.87830836,210.26,210.19,23.87830836]
[1731638438938,23.87830836,210.25,210.18,23.87830836]
[1731638439162,23.87830836,210.25,210.14,15.3382]
[1731638439163,47.65519236,210.23,210.16,23.87830836]
[1731638439341,23.87830836,210.21,210.14,39.21650836]
[1731638439657,34.932084,210.27,210.14,15.3382]
[1731638439658,23.87830836,210.2,210.14,15.3382]
[1731638440041,23.87830836,210.22,210.15,23.87830836]
[1731638441156,23.87830836,210.24,210.17,23.87830836]
[1731638441362,23.87830836,210.26,210.19,23.87830836]
[1731638441540,23.87830836,210.27,210.2,23.87830836]
[1731638442242,23.87830836,210.28,210.21,23.87830836]
[1731638442961,23.776884,210.27,210.21,23.87830836]
[1731638443159,47.65519236,210.27,210.2,23.87830836]
[1731638444365,23.87830836,210.26,210.19,23.87830836]
[1731638444546,23.776884,210.27,210.2,23.87830836]
[1731638444547,23.87830836,210.27,210.2,23.87830836]
[1731638445554,23.87830836,210.27,210.19,23.87830836]
[1731638445749,23.776884,210.29,210.17,23.87830836]
[1731638445750,23.87830836,210.24,210.17,23.87830836]
[1731638445957,23.87830836,210.23,210.16,23.87830836]
[1731638446148,0.12549,210.28,210.15,23.87830836]
[1731638446149,23.87830836,210.22,210.15,23.87830836]
[1731638446774,23.776884,210.22,210.16,23.87830836]
[1731638447139,23.87830836,210.24,210.17,23.87830836]
[1731638447343,0.12549,210.28,210.14,15.3382]